[Event "GCT Superbet Blitz Poland 2025"]
[Site "Warsaw"]
[Date "2025.04.30"]
[Round "18"]
[White "Aravindh, Chithambaram VR."]
[Black "Vachier-Lagrave, Maxime"]
[Result "0-1"]
[ECO "B91"]
[WhiteElo "2749"]
[BlackElo "2722"]
[Annotator "ChessBase"]
[PlyCount "114"]
[EventDate "2025.??.??"]
[EventType "blitz"]
[TimeControl "300+2"]

1. e4 {[%emt 0:00:02]} c5 {[%emt 0:00:00]} 2. Nf3 {[%emt 0:00:02]} d6 {[%emt 0:00:01]} 3. d4 {[%emt 0:00:01]} cxd4 {[%emt 0:00:01]} 4. Nxd4 {[%emt 0:00:02]} Nf6 {[%emt 0:00:01]} 5. Nc3 {[%emt 0:00:01]} a6 {[%emt 0:00:01]} 6. g3 {[%emt 0:00:02]} e5 {[%emt 0:00:04]} 7. Nde2 {[%emt 0:00:02]} Nbd7 {[%emt 0:00:08]} 8. a4 {[%emt 0:00:04]} b6 {[%emt 0:00:01]} 9. Bg2 {[%emt 0:00:02]} Bb7 {[%emt 0:00:08]} 10. h3 {[%emt 0:00:22]} h5 {[%emt 0:00:02]} 11. Bg5 {[%emt 0:00:04]} Be7 {[%emt 0:00:02]} 12. O-O {[%emt 0:00:35]} Rc8 {[%emt 0:00:02]} 13. Qd2 {[%emt 0:00:05]} O-O {[%emt 0:00:16]} 14. Rad1 $146 {[%emt 0:00:05]} ({RR} 14. Rfd1 Rc4 15. Qd3 Rc7 16. Qe3 Rc5 17. Qd3 Qa8 18. Rac1 Rfc8 19. h4 Bf8 20. Bh3 R8c7 21. Bxd7 Nxd7 22. Nd5 Bxd5 23. exd5 b5 24. Nc3 b4 25. Ne4 Rc4 26. c3 bxc3 27. Nxc3 Qb7 28. Qe2 g6 {Stojanovic,M (2470)-Bates,R (2345) Zagan 1997 0-1 (62)}) ({RR} 14. Rac1 Rc4 15. b3 Rc7 16. f4 Re8 17. Bxf6 Nxf6 18. Nd5 Nxd5 19. exd5 Bf6 20. h4 b5 21. axb5 axb5 22. f5 e4 23. Rf4 Rce7 24. c4 Qb6+ 25. Kh2 bxc4 26. bxc4 Ba6 27. Qc2 Qe3 28. Rb1 Qd3 {Naylor,J (2295)-Bates,R (2310) London 1997 0-1 (45)}) 14... Rc7 {[%emt 0:00:15]} 15. f4 {[%emt 0:00:14]} Re8 {[%emt 0:00:11]} 16. Kh2 {[%emt 0:00:52]} Qa8 {[%emt 0:00:05]} 17. Nd5 {[%emt 0:00:50]} Nxd5 {[%emt 0:01:14]} 18. exd5 {[%emt 0:00:02]} Bf6 {[%emt 0:00:16]} 19. Nc3 {[%emt 0:00:13]} exf4 {[%emt 0:00:08]} 20. Qxf4 {[%emt 0:00:10]} Qd8 {[%emt 0:00:01]} 21. Bh4 {[%emt 0:00:50]} Re5 {[%emt 0:00:25]} 22. Ne4 {[%emt 0:00:21]} Rxc2 {[%emt 0:00:01]} 23. Nxf6+ {[%emt 0:00:18]} Nxf6 {[%emt 0:00:02]} 24. Rd2 {[%emt 0:00:06]} Rxd2 {[%emt 0:00:36]} 25. Qxd2 {[%emt 0:00:02]} Qe7 {[%emt 0:00:01]} 26. Rf2 {[%emt 0:00:18]} g5 {[%emt 0:00:37]} 27. Bxg5 {[%emt 0:00:02]} Ng4+ {[%emt 0:00:01]} 28. hxg4 {[%emt 0:00:02]} Qxg5 {[%emt 0:00:01]} 29. Qb4 {[%emt 0:00:06]} hxg4 {[%emt 0:00:11]} 30. Qxd6 {[%emt 0:00:03]} Bxd5 {[%emt 0:00:07]} 31. Bxd5 {[%emt 0:00:03]} Rxd5 {[%emt 0:00:05]} 32. Qf4 {[%emt 0:00:02]} Qh5+ {[%emt 0:00:02]} 33. Kg1 {[%emt 0:00:01]} Rd1+ {[%emt 0:00:02]} 34. Rf1 {[%emt 0:00:01]} Qc5+ {[%emt 0:00:02]} 35. Kg2 {[%emt 0:00:03]} Qc2+ {[%emt 0:00:03]} 36. Kg1 {[%emt 0:00:02]} Rxf1+ {[%emt 0:00:02]} 37. Kxf1 {[%emt 0:00:02]} Qb1+ {[%emt 0:00:02]} 38. Ke2 {[%emt 0:00:02]} Qxb2+ {[%emt 0:00:01]} 39. Kd3 {[%emt 0:00:01]} Qb3+ {[%emt 0:00:01]} 40. Kd2 {[%emt 0:00:03]} Qe6 {[%emt 0:00:07]} 41. Qg5+ {[%emt 0:00:02]} Kh7 {[%emt 0:00:03]} 42. Qd8 {[%emt 0:00:03]} b5 {[%emt 0:00:02]} 43. axb5 {[%emt 0:00:02]} axb5 {[%emt 0:00:01]} 44. Qd3+ {[%emt 0:00:01]} Kh6 {[%emt 0:00:05]} 45. Qxb5 {[%emt 0:00:01]} Qd6+ {[%emt 0:00:01]} 46. Ke2 {[%emt 0:00:02]} Qxg3 {[%emt 0:00:01]} 47. Qc6+ {[%emt 0:00:02]} Kg7 {[%emt 0:00:03]} 48. Qd5 {[%emt 0:00:02]} Qf4 {[%emt 0:00:04]} 49. Qh5 {[%emt 0:00:03]} g3 {[%emt 0:00:06]} 50. Qh3 {[%emt 0:00:01]} Kg6 {[%emt 0:00:05]} 51. Qh8 {[%emt 0:00:02]} Qf2+ {[%emt 0:00:03]} 52. Kd3 {[%emt 0:00:01]} g2 {[%emt 0:00:06]} 53. Qg8+ {[%emt 0:00:02]} Kh5 {[%emt 0:00:01]} 54. Qh7+ {[%emt 0:00:02]} Kg4 {[%emt 0:00:01]} 55. Qg7+ {[%emt 0:00:04]} Kh3 {[%emt 0:00:02]} 56. Qh7+ {[%emt 0:00:02]} Qh4 {[%emt 0:00:02]} 57. Qf5+ {[%emt 0:00:02]} Kh2 {[%emt 0:00:01]} 0-1

[Event "GCT Superbet Blitz Poland 2025"]
[Site "Warsaw"]
[Date "2025.04.30"]
[Round "18"]
[White "Aronian, Levon"]
[Black "Duda, Jan-Krzysztof"]
[Result "1/2-1/2"]
[ECO "E14"]
[WhiteElo "2747"]
[BlackElo "2739"]
[Annotator "ChessBase"]
[PlyCount "81"]
[EventDate "2025.??.??"]
[EventType "blitz"]
[TimeControl "300+2"]

1. d4 {[%emt 0:00:01]} Nf6 {[%emt 0:00:02]} 2. c4 {[%emt 0:00:01]} e6 {[%emt 0:00:01]} 3. Nf3 {[%emt 0:00:01]} d5 {[%emt 0:00:04]} 4. Nc3 {[%emt 0:00:02]} c6 {[%emt 0:00:02]} 5. e3 {[%emt 0:00:02]} Nbd7 {[%emt 0:00:01]} 6. Qc2 {[%emt 0:00:05]} b6 {[%emt 0:00:04]} 7. Bd3 {[%emt 0:00:05]} Bb7 {[%emt 0:00:02]} 8. O-O {[%emt 0:00:02]} Be7 {[%emt 0:00:09]} 9. b3 {[%emt 0:00:27]} dxc4 {[%emt 0:00:06]} 10. bxc4 {[%emt 0:00:06]} c5 {[%emt 0:00:01]} 11. Qe2 {[%emt 0:00:08]} ({RR} 11. d5 exd5 12. cxd5 Nxd5 13. Nxd5 Bxd5 14. Rd1 Qc7 15. Nd4 O-O-O 16. Nb5 Qb7 17. e4 Bc6 18. Bf4 Nf6 19. Qa4 Bxb5 20. Bxb5 Rxd1+ 21. Rxd1 Rd8 22. Rxd8+ Kxd8 23. Bc6 Qc8 24. Qd1+ Nd7 25. Qd5 Ke8 {Podkriznik,G (2421)-Blazeka,M (2279) Grosuplje SLO 2024 ½-½ (33)}) 11... O-O {[%emt 0:00:09]} 12. Bb2 {[%emt 0:00:01]} Qc7 {[%emt 0:00:21]} 13. Rad1 $146 {[%emt 0:00:12]} ({RR} 13. Rfd1 cxd4 14. exd4 Rfe8 15. Rac1 Rac8 16. Re1 Bb4 17. Ne5 Nxe5 18. dxe5 Nd7 19. Nb5 Qb8 20. Nd6 Bxd6 21. exd6 Qxd6 22. Qg4 Qf8 23. Re3 f5 24. Qh4 Nf6 25. Rce1 Qf7 26. Rg3 Kh8 27. Rh3 Rcd8 {Pragua,C (2031)-Dehmel,J (1975) Nordrheinwestfalen 2018 0-1 (36)}) ({RR} 13. Rfd1 Rad8 14. d5 exd5 15. cxd5 Nxd5 16. Nxd5 Bxd5 17. Bxh7+ Kxh7 18. Rxd5 Nf6 19. Rg5 Ne8 20. Qc2+ f5 21. Rxf5 Rxf5 22. Qxf5+ Kg8 23. Ne5 Bf6 24. Qe6+ Kh7 25. f4 Rd2 26. Bc3 {1-0 (26) Kock,H (2153)-Jahr,D (2014) Halle 2004}) ({RR} 13. Ne5 Nxe5 14. dxe5 Qxe5 15. Ne4 Qc7 16. Nxf6+ Bxf6 17. Bxf6 gxf6 18. Qg4+ Kh8 19. Qh4 f5 20. Qf6+ Kg8 21. Qg5+ Kh8 22. Qf6+ Kg8 23. Qg5+ Kh8 24. Qf6+ {½-½ (24) Dardha,D (2468)-Basso,P (2570) Bad Wiessee 2020}) 13... cxd4 {[%emt 0:00:10]} 14. exd4 {[%emt 0:00:01]} Rfe8 {[%emt 0:00:10]} 15. Ne5 {[%emt 0:00:56]} Nxe5 {[%emt 0:00:56]} 16. dxe5 {[%emt 0:00:02]} Qc6 {[%emt 0:00:09]} 17. f4 {[%emt 0:00:34]} Nd7 {[%emt 0:00:06]} 18. Be4 {[%emt 0:00:53]} Qc8 {[%emt 0:00:07]} 19. Rf3 {[%emt 0:00:24]} Nc5 {[%emt 0:00:11]} 20. Bxh7+ {[%emt 0:00:08]} Kxh7 {[%emt 0:01:14]} 21. Rh3+ {[%emt 0:00:01]} Kg8 {[%emt 0:00:02]} 22. Qh5 {[%emt 0:00:01]} f6 {[%emt 0:01:03]} 23. Nd5 {[%emt 0:01:13]} exd5 {[%emt 0:00:13]} 24. exf6 {[%emt 0:00:01]} Bxf6 {[%emt 0:00:07]} 25. Bxf6 {[%emt 0:00:01]} Qxh3 {[%emt 0:00:16]} 26. Qxh3 {[%emt 0:00:13]} gxf6 {[%emt 0:00:02]} 27. cxd5 {[%emt 0:00:02]} Re7 {[%emt 0:00:03]} 28. Qf5 {[%emt 0:00:06]} Nd7 {[%emt 0:00:04]} 29. h4 {[%emt 0:00:02]} Rae8 {[%emt 0:00:01]} 30. h5 {[%emt 0:00:02]} Ba6 {[%emt 0:00:02]} 31. d6 {[%emt 0:00:03]} Re6 {[%emt 0:00:03]} 32. Qg6+ {[%emt 0:00:02]} Kh8 {[%emt 0:00:02]} 33. Qf7 {[%emt 0:00:04]} Re2 {[%emt 0:00:02]} 34. Qxd7 {[%emt 0:00:04]} Rg8 {[%emt 0:00:00]} 35. Qh3 {[%emt 0:00:01]} Bb7 {[%emt 0:00:01]} 36. d7 {[%emt 0:00:04]} Bxg2 {[%emt 0:00:02]} 37. Qh4 {[%emt 0:00:01]} Bh3+ {[%emt 0:00:04]} 38. Kh1 {[%emt 0:00:02]} Bg2+ {[%emt 0:00:01]} 39. Kg1 {[%emt 0:00:01]} Bh3+ {[%emt 0:00:02]} 40. Kh1 {[%emt 0:00:02]} Bg2+ {[%emt 0:00:01]} 41. Kg1 {[%emt 0:00:01]} 1/2-1/2

[Event "GCT Superbet Blitz Poland 2025"]
[Site "Warsaw"]
[Date "2025.04.30"]
[Round "18"]
[White "Deac, Bogdan-Daniel"]
[Black "Topalov, Veselin"]
[Result "1-0"]
[ECO "B38"]
[WhiteElo "2668"]
[BlackElo "2717"]
[Annotator "ChessBase"]
[PlyCount "103"]
[EventDate "2025.??.??"]
[EventType "blitz"]
[TimeControl "300+2"]

1. e4 {[%emt 0:00:02]} c5 {[%emt 0:00:00]} 2. Nf3 {[%emt 0:00:27]} Nc6 {[%emt 0:00:01]} 3. d4 {[%emt 0:00:09]} cxd4 {[%emt 0:00:03]} 4. Nxd4 {[%emt 0:00:01]} g6 {[%emt 0:00:09]} 5. c4 {[%emt 0:00:03]} Bg7 {[%emt 0:00:01]} 6. Be3 {[%emt 0:00:02]} Nf6 {[%emt 0:00:18]} 7. Nc3 {[%emt 0:00:02]} d6 {[%emt 0:00:01]} 8. f3 {[%emt 0:00:19]} O-O {[%emt 0:00:02]} 9. Qd2 {[%emt 0:00:02]} e6 {[%emt 0:00:01]} 10. Nc2 {[%emt 0:01:08]} ({RR} 10. O-O-O d5 11. Nxc6 bxc6 12. e5 Nd7 13. f4 Qa5 14. Kb1 Rd8 15. Ne4 Qxd2 16. Nxd2 Ba6 17. Nb3 Bf8 18. Na5 Nb6 19. Bxb6 axb6 20. Nxc6 Rdc8 21. cxd5 Bxf1 22. Rhxf1 exd5 23. Nd4 Rc4 24. b3 Rc5 {Toktomushev,T (2300)-Lenoir Ibacache,G (2228) chess.com INT 2024 1-0 (32)}) 10... d5 {[%emt 0:00:04]} 11. cxd5 {[%emt 0:00:43]} exd5 {[%emt 0:00:01]} 12. exd5 {[%emt 0:00:15]} Ne7 $146 {[%emt 0:00:05]} ({RR} 12... Ne5 13. Be2 Bf5 14. Nd4 Bd7 15. O-O Re8 16. Rfd1 Rc8 17. Bf2 Qa5 18. Nb3 Qd8 19. Bf1 Nh5 20. Ne4 f5 21. Nd6 f4 22. Nxe8 Qg5 23. Kh1 Rxe8 24. Nd4 Qh6 25. Ne6 Bf6 26. Kg1 g5 27. Bd4 {Sanchez Alvares,K (2194)-Rytenko,V (2362) Chess.com INT 2022 1-0 (46)}) ({RR} 12... Ne5 13. Be2 Bf5 14. Nd4 Bd7 15. O-O Re8 16. Rfd1 Rc8 17. Bf2 Qa5 18. Nb3 Qd8 19. Bf1 Nh5 20. Ne4 f5 21. Nd6 f4 22. Nxe8 Qg5 23. Kh1 Rxe8 24. Nd4 Qh6 25. Ne6 Bf6 26. Kg1 g5 27. Bd4 {Sanchez Alvares,K (2194)-Rytenko,V (2362) Chess.com INT 2022 1-0 (46)}) 13. O-O-O {[%emt 0:00:16]} Nf5 {[%emt 0:00:06]} 14. Bg5 {[%emt 0:00:20]} h6 {[%emt 0:00:10]} 15. Bf4 {[%emt 0:00:02]} Nh5 {[%emt 0:00:12]} 16. Be3 {[%emt 0:00:49]} Nxe3 {[%emt 0:00:03]} 17. Qxe3 {[%emt 0:00:14]} Re8 {[%emt 0:00:12]} 18. Qd2 {[%emt 0:00:06]} Qd6 {[%emt 0:00:09]} 19. Bb5 {[%emt 0:00:11]} Rd8 {[%emt 0:00:02]} 20. Rhe1 {[%emt 0:00:21]} a6 {[%emt 0:00:01]} 21. Bf1 {[%emt 0:00:06]} Bd7 {[%emt 0:00:17]} 22. g3 {[%emt 0:00:04]} Rac8 {[%emt 0:00:13]} 23. Kb1 {[%emt 0:00:00]} Rxc3 {[%emt 0:00:49]} 24. bxc3 {[%emt 0:00:01]} Qb6+ {[%emt 0:00:00]} 25. Ka1 {[%emt 0:00:03]} Qc5 {[%emt 0:00:01]} 26. Nd4 {[%emt 0:00:02]} Ba4 {[%emt 0:00:02]} 27. Rc1 {[%emt 0:00:04]} Rxd5 {[%emt 0:00:02]} 28. Qb2 {[%emt 0:00:02]} Kh7 {[%emt 0:00:08]} 29. Kb1 {[%emt 0:00:01]} Rd6 {[%emt 0:00:07]} 30. Nb3 {[%emt 0:00:01]} Qc7 {[%emt 0:00:56]} 31. Re3 {[%emt 0:00:02]} Nf6 {[%emt 0:00:03]} 32. Rd3 {[%emt 0:00:04]} Nd5 {[%emt 0:00:25]} 33. Qd2 {[%emt 0:00:01]} Bxb3 {[%emt 0:00:55]} 34. axb3 {[%emt 0:00:00]} Qb6 {[%emt 0:00:01]} 35. b4 {[%emt 0:00:04]} Nxc3+ {[%emt 0:00:01]} 36. Rcxc3 {[%emt 0:00:01]} Qxb4+ {[%emt 0:00:01]} 37. Ka2 {[%emt 0:00:01]} Bxc3 {[%emt 0:00:16]} 38. Qxc3 {[%emt 0:00:01]} Qxc3 {[%emt 0:00:01]} 39. Rxc3 {[%emt 0:00:01]} Rd2+ {[%emt 0:00:01]} 40. Kb3 {[%emt 0:00:03]} Rxh2 {[%emt 0:00:01]} 41. Rc7 {[%emt 0:00:01]} b5 {[%emt 0:00:05]} 42. Rxf7+ {[%emt 0:00:03]} Kg8 {[%emt 0:00:00]} 43. Rf4 {[%emt 0:00:05]} Kg7 {[%emt 0:00:03]} 44. Bd3 {[%emt 0:00:02]} h5 {[%emt 0:00:03]} 45. g4 {[%emt 0:00:02]} h4 {[%emt 0:00:01]} 46. g5 {[%emt 0:00:01]} Rg2 {[%emt 0:00:01]} 47. Rxh4 {[%emt 0:00:02]} Rxg5 {[%emt 0:00:01]} 48. Kb4 {[%emt 0:00:03]} Rg1 {[%emt 0:00:07]} 49. Be4 {[%emt 0:00:02]} Kf6 {[%emt 0:00:02]} 50. Rh6 {[%emt 0:00:01]} Kg7 {[%emt 0:00:03]} 51. Rh2 {[%emt 0:00:02]} Kf6 {[%emt 0:00:01]} 52. Ra2 {[%emt 0:00:01]} 1-0

[Event "GCT Superbet Blitz Poland 2025"]
[Site "Warsaw"]
[Date "2025.04.30"]
[Round "18"]
[White "Gavrilescu, David"]
[Black "Praggnanandhaa R"]
[Result "0-1"]
[ECO "B01"]
[WhiteElo "2554"]
[BlackElo "2758"]
[Annotator "ChessBase"]
[PlyCount "98"]
[EventDate "2025.??.??"]
[EventType "blitz"]
[TimeControl "300+2"]

1. e4 {[%emt 0:00:02]} d5 {[%emt 0:00:00]} 2. exd5 {[%emt 0:00:02]} Qxd5 {[%emt 0:00:01]} 3. Nf3 {[%emt 0:00:03]} Nf6 {[%emt 0:00:07]} 4. d4 {[%emt 0:00:01]} Bf5 {[%emt 0:00:05]} 5. Be2 {[%emt 0:00:14]} e6 {[%emt 0:00:05]} 6. O-O {[%emt 0:00:05]} Be7 {[%emt 0:00:02]} 7. c4 {[%emt 0:00:02]} Qd8 {[%emt 0:00:02]} 8. Nc3 {[%emt 0:00:01]} Nbd7 {[%emt 0:00:06]} ({RR} 8... O-O 9. h3 h6 10. Bf4 c6 11. Rc1 Nbd7 12. a3 a5 13. Bd3 Bxd3 14. Qxd3 a4 15. Rfd1 Qa5 16. Qe2 Rfe8 17. Ne5 Qa6 18. Re1 Rad8 19. g3 Nxe5 20. dxe5 Nd7 21. Ne4 Nc5 22. Nf6+ gxf6 23. Qg4+ {Hald Falkesgaard,J (2276)-Moldagali,B (2331) chess.com INT 2024 0-1 (40)}) 9. Qb3 {[%emt 0:00:12]} Qc8 {[%emt 0:00:06]} 10. Bf4 {[%emt 0:00:06]} O-O {[%emt 0:00:11]} 11. Nh4 $146 {[%emt 0:00:09]} ({RR} 11. h3 a6 12. Rfe1 h6 13. Bf1 Bd6 14. Be5 Rd8 15. g4 Bh7 16. Bg2 Rb8 17. Re3 b5 18. cxb5 axb5 19. g5 b4 20. gxf6 bxc3 21. Qxc3 Nxf6 22. Bxf6 Bb4 23. Qc4 gxf6 24. Nh2 Bf8 25. d5 Rb4 {Nemeth,M (2474)-Milanovic,D (2408) Mali Losinj 2021 1-0 (37)}) ({RR} 11. h3 a6 12. Rfe1 h6 13. Bf1 Bd6 14. Be5 Rd8 15. g4 Bh7 16. Bg2 Rb8 17. Re3 b5 18. cxb5 axb5 19. g5 b4 20. gxf6 bxc3 21. Qxc3 Nxf6 22. Bxf6 Bb4 23. Qc4 gxf6 24. Nh2 Bf8 25. d5 Rb4 {Nemeth,M (2474)-Milanovic,D (2408) Mali Losinj 2021 1-0 (37)}) 11... Bg4 {[%emt 0:00:04]} 12. Bxg4 {[%emt 0:00:10]} Nxg4 {[%emt 0:00:02]} 13. Nf3 {[%emt 0:00:02]} Ngf6 {[%emt 0:00:15]} 14. Rfe1 {[%emt 0:00:01]} Re8 {[%emt 0:00:07]} 15. Rad1 {[%emt 0:00:05]} a6 {[%emt 0:00:07]} 16. d5 {[%emt 0:00:10]} exd5 {[%emt 0:00:37]} 17. cxd5 {[%emt 0:00:04]} b5 {[%emt 0:00:14]} 18. h3 {[%emt 0:00:10]} Qb7 {[%emt 0:00:22]} 19. Ng5 {[%emt 0:01:06]} Nc5 {[%emt 0:00:10]} 20. Qc2 {[%emt 0:00:21]} h6 {[%emt 0:00:02]} 21. Nf3 {[%emt 0:00:27]} b4 {[%emt 0:00:02]} 22. Na4 {[%emt 0:00:09]} Nxa4 {[%emt 0:00:06]} 23. Qxa4 {[%emt 0:00:02]} Nxd5 {[%emt 0:00:02]} 24. Bg3 {[%emt 0:00:04]} Nb6 {[%emt 0:00:48]} 25. Qb3 {[%emt 0:00:08]} c5 {[%emt 0:00:21]} 26. Ne5 {[%emt 0:00:28]} Bf6 {[%emt 0:00:04]} 27. Ng4 {[%emt 0:00:01]} Bd4 {[%emt 0:00:10]} 28. Be5 {[%emt 0:00:06]} Bxe5 {[%emt 0:00:30]} 29. Nxe5 {[%emt 0:00:08]} Rad8 {[%emt 0:00:08]} 30. Rxd8 {[%emt 0:00:26]} Rxd8 {[%emt 0:00:01]} 31. a3 {[%emt 0:00:08]} a5 {[%emt 0:00:03]} 32. Ng4 {[%emt 0:00:07]} c4 {[%emt 0:00:12]} 33. Qg3 {[%emt 0:00:03]} Qc6 {[%emt 0:00:01]} 34. Qe5 {[%emt 0:00:18]} bxa3 {[%emt 0:00:10]} 35. bxa3 {[%emt 0:00:02]} c3 {[%emt 0:00:14]} 36. Rc1 {[%emt 0:00:02]} Nd5 {[%emt 0:00:15]} 37. Qd4 {[%emt 0:00:12]} Qc7 {[%emt 0:00:03]} 38. g3 {[%emt 0:00:03]} c2 {[%emt 0:00:07]} 39. Qe4 {[%emt 0:00:05]} Nc3 {[%emt 0:00:11]} 40. Rxc2 {[%emt 0:00:03]} Qxg3+ {[%emt 0:00:04]} 41. fxg3 {[%emt 0:00:01]} Nxe4 {[%emt 0:00:00]} 42. Ne3 {[%emt 0:00:09]} Rd3 {[%emt 0:00:04]} 43. Nc4 {[%emt 0:00:01]} a4 {[%emt 0:00:01]} 44. g4 {[%emt 0:00:02]} Rxh3 {[%emt 0:00:01]} 45. Re2 {[%emt 0:00:03]} Rg3+ {[%emt 0:00:04]} 46. Kh2 {[%emt 0:00:03]} Rxg4 {[%emt 0:00:01]} 47. Kh3 {[%emt 0:00:03]} f5 {[%emt 0:00:03]} 48. Ne5 {[%emt 0:00:02]} Ng5+ {[%emt 0:00:02]} 49. Kh2 {[%emt 0:00:01]} Re4 {[%emt 0:00:01]} 0-1